[Event "2026 European Womens Championship"]
[Site "Batumi, GE"]
[Date "2026.06.01"]
[Round "7"]
[White "Bashylina, Luisa"]
[Black "Hayrapetyan, Nvard"]
[Result "1-0"]
[Board "105"]
[TimeControl "5400+30"]
[WhiteFideId "12983292"]
[BlackFideId "13316460"]
[WhiteElo "2208"]
[BlackElo "2057"]
[WhiteTitle "WFM"]
[BlackTitle "WFM"]
[WhiteClock "0:19:21"]
[BlackClock "0:00:49"]
[Variant "Standard"]

1. d4 {[%clk 1:30:58]}  Nf6 {[%clk 1:30:57]} 2. c4 {[%clk 1:31:24]}  e6 {[%clk 1:31:24]} 3. Nc3 {[%clk 1:31:50]}  Bb4 {[%clk 1:31:50]}
4. e3 {[%clk 1:32:16]}  O-O {[%clk 1:32:15]} 5. Bd2 {[%clk 1:32:43]}  d5 {[%clk 1:32:20]} 6. Nf3 {[%clk 1:33:08]}  b6 {[%clk 1:31:41]}
7. cxd5 {[%clk 1:33:33]}  exd5 {[%clk 1:31:53]} 8. Rc1 {[%clk 1:33:57]}  Bd6 {[%clk 1:30:02]} 9. Nb5 {[%clk 1:34:11]}  c5 {[%clk 1:29:53]}
10. dxc5 {[%clk 1:34:32]}  bxc5 {[%clk 1:29:13]} 11. Bc3 {[%clk 1:34:46]}  Bb7 {[%clk 1:11:10]} 12. Nxd6 {[%clk 1:30:04]}  Qxd6 {[%clk 1:08:16]}
13. Bxf6 {[%clk 1:28:53]}  Qxf6 {[%clk 1:07:37]} 14. Rxc5 {[%clk 1:27:26]}  Qxb2 {[%clk 1:06:10]} 15. Rc2 {[%clk 1:25:36]}  Qb6 {[%clk 1:02:27]}
16. Be2 {[%clk 1:24:09]}  Nd7 {[%clk 1:01:13]} 17. O-O {[%clk 1:23:49]}  Rac8 {[%clk 0:58:02]} 18. Nd4 {[%clk 1:19:28]}  Nc5 {[%clk 0:50:52]}
19. Qa1 {[%clk 1:06:12]}  Ne6 {[%clk 0:42:25]} 20. Rxc8 {[%clk 1:05:00]}  Rxc8 {[%clk 0:41:16]} 21. Rb1 {[%clk 1:03:23]}  Qc7 {[%clk 0:34:43]}
22. h3 {[%clk 1:00:30]}  Re8 {[%clk 0:23:06]} 23. Qb2 {[%clk 0:54:26]}  Nxd4 {[%clk 0:19:13]} 24. Qxd4 {[%clk 0:54:40]}  Bc6 {[%clk 0:17:37]}
25. Qc5 {[%clk 0:48:26]}  Re6 {[%clk 0:14:42]} 26. Bf3 {[%clk 0:41:40]}  h6 {[%clk 0:09:52]} 27. Rc1 {[%clk 0:34:28]}  Qb7 {[%clk 0:09:01]}
28. Rd1 {[%clk 0:32:10]}  Rf6 {[%clk 0:05:40]} 29. h4 {[%clk 0:25:01]}  Qa6 {[%clk 0:04:22]} 30. a3 {[%clk 0:21:06]}  Bb7 {[%clk 0:02:59]}
31. h5 {[%clk 0:20:21]}  Qa4 {[%clk 0:01:35]} 32. Rb1 {[%clk 0:19:54]}  Qa6 {[%clk 0:01:04]} 33. Qe7 {[%clk 0:18:24]}  Rb6 {[%clk 0:00:42]}
34. Rxb6 {[%clk 0:18:24]}  Qxb6 {[%clk 0:00:52]} 35. Qe8+ {[%clk 0:18:49]}  Kh7 {[%clk 0:01:20]} 36. Qxf7 {[%clk 0:19:09]}  Qc6 {[%clk 0:01:21]}
37. Bg4 {[%clk 0:18:59]}  Bc8 {[%clk 0:00:49]} 38. Qg6+ {[%clk 0:19:21]} 1-0

[Event "2026 European Womens Championship"]
[Site "Batumi, GE"]
[Date "2026.06.01"]
[Round "7"]
[White "Maisuradze, Nino"]
[Black "Nenova, Andzhelika"]
[Result "1-0"]
[Board "106"]
[TimeControl "5400+30"]
[WhiteFideId "13601717"]
[BlackFideId "2939355"]
[WhiteElo "2198"]
[BlackElo "2072"]
[WhiteTitle "WGM"]
[WhiteClock "0:09:07"]
[BlackClock "0:02:02"]
[Variant "Standard"]

1. Nf3 {[%clk 1:30:48]}  d5 {[%clk 1:30:46]} 2. c4 {[%clk 1:30:48]}  e6 {[%clk 1:31:03]} 3. b3 {[%clk 1:29:47]}  Nf6 {[%clk 1:29:29]}
4. Bb2 {[%clk 1:30:05]}  Be7 {[%clk 1:28:52]} 5. e3 {[%clk 1:27:19]}  O-O {[%clk 1:26:10]} 6. Be2 {[%clk 1:25:59]}  b6 {[%clk 1:25:58]}
7. cxd5 {[%clk 1:19:46]}  exd5 {[%clk 1:24:35]} 8. O-O {[%clk 1:19:28]}  Bb7 {[%clk 1:23:24]} 9. Nd4 {[%clk 1:18:00]}  Re8 {[%clk 1:15:27]}
10. Nc3 {[%clk 1:09:59]}  c5 {[%clk 1:01:58]} 11. Nf5 {[%clk 1:09:29]}  Bf8 {[%clk 0:58:19]} 12. d4 {[%clk 1:02:57]}  g6 {[%clk 0:48:08]}
13. Ng3 {[%clk 1:03:20]}  h5 {[%clk 0:47:45]} 14. Bf3 {[%clk 0:56:25]}  h4 {[%clk 0:44:34]} 15. Nge2 {[%clk 0:56:50]}  Na6 {[%clk 0:41:13]}
16. Rc1 {[%clk 0:56:08]}  Qd7 {[%clk 0:35:20]} 17. dxc5 {[%clk 0:54:33]}  bxc5 {[%clk 0:35:40]} 18. Na4 {[%clk 0:52:12]}  Ne4 {[%clk 0:34:41]}
19. Nf4 {[%clk 0:43:35]}  Qf5 {[%clk 0:28:12]} 20. Bg4 {[%clk 0:36:00]}  Qg5 {[%clk 0:28:28]} 21. f3 {[%clk 0:35:53]}  Nf6 {[%clk 0:17:49]}
22. Bxf6 {[%clk 0:22:00]}  Qxf6 {[%clk 0:18:14]} 23. Nxd5 {[%clk 0:22:09]}  Qe5 {[%clk 0:16:55]} 24. e4 {[%clk 0:20:43]}  Rad8 {[%clk 0:15:35]}
25. f4 {[%clk 0:18:44]}  Qg7 {[%clk 0:16:04]} 26. Bf3 {[%clk 0:15:39]}  Bxd5 {[%clk 0:12:32]} 27. exd5 {[%clk 0:16:07]}  Bd6 {[%clk 0:12:55]}
28. Be2 {[%clk 0:14:31]}  Nb4 {[%clk 0:12:29]} 29. a3 {[%clk 0:06:51]}  Nxd5 {[%clk 0:12:22]} 30. Qxd5 {[%clk 0:06:55]}  Rxe2 {[%clk 0:12:40]}
31. Nc3 {[%clk 0:02:34]}  Ree8 {[%clk 0:05:35]} 32. Qc4 {[%clk 0:02:25]}  Qf6 {[%clk 0:00:59]} 33. Rcd1 {[%clk 0:00:42]}  Bf8 {[%clk 0:01:04]}
34. Nd5 {[%clk 0:00:44]}  Qf5 {[%clk 0:01:09]} 35. h3 {[%clk 0:00:49]}  Kh8 {[%clk 0:00:34]} 36. Ne3 {[%clk 0:00:53]}  Qf6 {[%clk 0:00:32]}
37. Ng4 {[%clk 0:01:07]}  Qg7 {[%clk 0:00:38]} 38. Ne5 {[%clk 0:01:01]}  Kg8 {[%clk 0:00:56]} 39. Nd7 {[%clk 0:00:56]}  Rc8 {[%clk 0:00:32]}
40. f5 {[%clk 0:01:07]}  g5 {[%clk 0:00:34]} 41. Rd5 {[%clk 0:29:16]}  Re3 {[%clk 0:20:49]} 42. f6 {[%clk 0:28:24]}  Qg6 {[%clk 0:21:14]}
43. Nxf8 {[%clk 0:22:04]}  Kxf8 {[%clk 0:17:11]} 44. Qg4 {[%clk 0:21:24]}  Rce8 {[%clk 0:08:52]} 45. Rxg5 {[%clk 0:21:30]}  Qh7 {[%clk 0:09:21]}
46. Rh5 {[%clk 0:12:07]}  Qg8 {[%clk 0:09:36]} 47. Qxh4 {[%clk 0:11:30]}  R8e4 {[%clk 0:07:17]} 48. Rf4 {[%clk 0:09:11]}  Rg3 {[%clk 0:02:02]}
49. Qxg3 {[%clk 0:09:07]} 1-0

[Event "2026 European Womens Championship"]
[Site "Batumi, GE"]
[Date "2026.06.01"]
[Round "7"]
[White "Zeliantsova, Kseniya"]
[Black "Damaso Tacoronte, Carolina"]
[Result "1-0"]
[Board "107"]
[TimeControl "5400+30"]
[WhiteFideId "13512617"]
[BlackFideId "2292858"]
[WhiteElo "2176"]
[BlackElo "1890"]
[WhiteTitle "WFM"]
[WhiteClock "0:00:46"]
[BlackClock "0:02:49"]
[Variant "Standard"]

1. e4 {[%clk 1:30:58]}  c6 {[%clk 1:29:08]} 2. d4 {[%clk 1:31:22]}  d5 {[%clk 1:29:03]} 3. e5 {[%clk 1:31:34]}  Bf5 {[%clk 1:29:02]}
4. h4 {[%clk 1:31:56]}  h5 {[%clk 1:28:40]} 5. Bd3 {[%clk 1:32:18]}  Bxd3 {[%clk 1:26:44]} 6. Qxd3 {[%clk 1:32:39]}  e6 {[%clk 1:26:57]}
7. Bg5 {[%clk 1:32:36]}  Be7 {[%clk 1:25:56]} 8. Nf3 {[%clk 1:32:46]}  Nh6 {[%clk 1:23:18]} 9. Bxh6 {[%clk 1:29:50]}  Rxh6 {[%clk 1:21:47]}
10. Nbd2 {[%clk 1:30:14]}  Nd7 {[%clk 1:15:31]} 11. c3 {[%clk 1:20:22]}  Rg6 {[%clk 1:12:07]} 12. g3 {[%clk 1:18:25]}  Qb6 {[%clk 1:10:30]}
13. O-O {[%clk 1:10:34]}  a5 {[%clk 1:03:37]} 14. c4 {[%clk 1:06:14]}  Qa6 {[%clk 1:00:20]} 15. Rac1 {[%clk 1:02:03]}  c5 {[%clk 0:58:45]}
16. Qc2 {[%clk 0:54:07]}  cxd4 {[%clk 0:52:02]} 17. cxd5 {[%clk 0:49:25]}  d3 {[%clk 0:50:38]} 18. Qc3 {[%clk 0:36:20]}  Bb4 {[%clk 0:47:56]}
19. Qd4 {[%clk 0:34:23]}  Rg4 {[%clk 0:46:18]} 20. Qe3 {[%clk 0:34:34]}  exd5 {[%clk 0:44:48]} 21. a3 {[%clk 0:27:38]}  Qg6 {[%clk 0:34:58]}
22. axb4 {[%clk 0:15:00]}  Rxg3+ {[%clk 0:31:46]} 23. Kh2 {[%clk 0:15:26]}  Rg4 {[%clk 0:16:46]} 24. Rg1 {[%clk 0:14:23]}  d4 {[%clk 0:16:41]}
25. Qe1 {[%clk 0:13:23]}  Qf5 {[%clk 0:13:37]} 26. Rc4 {[%clk 0:10:17]}  Rf4 {[%clk 0:10:18]} 27. Rg3 {[%clk 0:07:08]}  Nf8 {[%clk 0:05:31]}
28. Rxd4 {[%clk 0:06:38]}  Rxd4 {[%clk 0:04:37]} 29. Nxd4 {[%clk 0:07:02]}  Qf4 {[%clk 0:04:46]} 30. Qe3 {[%clk 0:05:58]}  Qxh4+ {[%clk 0:04:14]}
31. Rh3 {[%clk 0:06:18]}  Qg4 {[%clk 0:04:23]} 32. Nb5 {[%clk 0:03:56]}  Ne6 {[%clk 0:04:01]} 33. Nd6+ {[%clk 0:03:14]}  Ke7 {[%clk 0:03:23]}
34. Qf3 {[%clk 0:02:26]}  Nf4 {[%clk 0:03:03]} 35. Qxb7+ {[%clk 0:01:22]}  Ke6 {[%clk 0:02:22]} 36. Qxf7+ {[%clk 0:01:42]}  Kxe5 {[%clk 0:02:35]}
37. N6c4+ {[%clk 0:01:59]}  Kd4 {[%clk 0:01:06]} 38. Nb3+ {[%clk 0:02:24]}  Ke4 {[%clk 0:00:46]} 39. Re3# {[%clk 0:02:49]} 1-0

[Event "2026 European Womens Championship"]
[Site "Batumi, GE"]
[Date "2026.06.01"]
[Round "7"]
[White "Buyuk, Ecrin Efsa"]
[Black "Berke, Ana"]
[Result "1/2-1/2"]
[Board "108"]
[TimeControl "5400+30"]
[WhiteFideId "44505175"]
[BlackFideId "14510359"]
[WhiteElo "2076"]
[BlackElo "2164"]
[WhiteTitle "WFM"]
[BlackTitle "WIM"]
[WhiteClock "0:01:00"]
[BlackClock "0:00:55"]
[Variant "Standard"]

1. e4 {[%clk 1:30:09]}  c5 {[%clk 1:30:54]} 2. Nc3 {[%clk 1:30:32]}  Nc6 {[%clk 1:31:19]} 3. Nge2 {[%clk 1:30:57]}  g6 {[%clk 1:30:41]}
4. d4 {[%clk 1:31:04]}  cxd4 {[%clk 1:31:40]} 5. Nxd4 {[%clk 1:31:31]}  Bg7 {[%clk 1:30:50]} 6. Nde2 {[%clk 1:31:57]}  Nf6 {[%clk 1:30:34]}
7. g3 {[%clk 1:31:57]}  b5 {[%clk 1:29:45]} 8. Bg2 {[%clk 1:30:39]}  b4 {[%clk 1:29:22]} 9. Nd5 {[%clk 1:30:03]}  a5 {[%clk 1:27:55]}
10. O-O {[%clk 1:28:47]}  Ba6 {[%clk 1:24:45]} 11. Re1 {[%clk 1:17:31]}  O-O {[%clk 1:22:49]} 12. a3 {[%clk 1:05:55]}  e6 {[%clk 1:18:13]}
13. Ne3 {[%clk 1:02:17]}  Qc7 {[%clk 1:15:51]} 14. axb4 {[%clk 0:54:24]}  axb4 {[%clk 1:13:14]} 15. Rb1 {[%clk 0:54:50]}  Rfc8 {[%clk 1:08:52]}
16. b3 {[%clk 0:51:38]}  Ne5 {[%clk 1:02:29]} 17. h3 {[%clk 0:39:25]}  d6 {[%clk 0:57:22]} 18. Bb2 {[%clk 0:34:51]}  Bb7 {[%clk 0:53:30]}
19. f4 {[%clk 0:35:06]}  Ned7 {[%clk 0:52:51]} 20. Qd4 {[%clk 0:31:42]}  Ra2 {[%clk 0:47:20]} 21. Qxb4 {[%clk 0:24:30]}  d5 {[%clk 0:37:07]}
22. e5 {[%clk 0:21:19]}  Ne4 {[%clk 0:34:37]} 23. Bxe4 {[%clk 0:14:56]}  dxe4 {[%clk 0:34:43]} 24. Bd4 {[%clk 0:13:15]}  Ba6 {[%clk 0:32:49]}
25. Qd2 {[%clk 0:09:53]}  Bf8 {[%clk 0:32:12]} 26. b4 {[%clk 0:07:38]}  Nb6 {[%clk 0:30:54]} 27. Nc3 {[%clk 0:06:39]}  Ra3 {[%clk 0:30:41]}
28. Nxe4 {[%clk 0:07:04]}  Nc4 {[%clk 0:30:08]} 29. Nxc4 {[%clk 0:06:19]}  Qxc4 {[%clk 0:29:30]} 30. c3 {[%clk 0:06:32]}  Bb7 {[%clk 0:28:26]}
31. Qe2 {[%clk 0:03:11]}  Qc7 {[%clk 0:28:21]} 32. g4 {[%clk 0:02:36]}  Be7 {[%clk 0:28:34]} 33. g5 {[%clk 0:02:40]}  Rca8 {[%clk 0:27:38]}
34. Qd3 {[%clk 0:00:53]}  Ra2 {[%clk 0:26:10]} 35. Re2 {[%clk 0:01:12]}  Qc6 {[%clk 0:25:31]} 36. b5 {[%clk 0:01:16]}  Qd7 {[%clk 0:25:10]}
37. Rxa2 {[%clk 0:01:26]}  Rxa2 {[%clk 0:25:16]} 38. b6 {[%clk 0:00:42]}  Kg7 {[%clk 0:24:13]} 39. Re1 {[%clk 0:00:54]}  Qa4 {[%clk 0:23:47]}
40. Bf2 {[%clk 0:00:46]}  Rc2 {[%clk 0:22:30]} 41. Qd4 {[%clk 0:00:31]}  Qa2 {[%clk 0:21:36]} 42. Nd6 {[%clk 0:08:02]}  Bc6 {[%clk 0:38:01]}
43. b7 {[%clk 0:08:16]}  Rb2 {[%clk 0:37:07]} 44. Rd1 {[%clk 0:03:49]}  Bxb7 {[%clk 0:35:05]} 45. Ne8+ {[%clk 0:03:36]}  Kf8 {[%clk 0:31:59]}
46. Nf6 {[%clk 0:03:42]}  Rb1 {[%clk 0:30:47]} 47. Qd3 {[%clk 0:03:45]}  Rxd1+ {[%clk 0:30:17]} 48. Qxd1 {[%clk 0:04:13]}  Qa6 {[%clk 0:28:14]}
49. Kh2 {[%clk 0:02:26]}  Qc6 {[%clk 0:27:30]} 50. Qg1 {[%clk 0:02:52]}  Qxc3 {[%clk 0:24:03]} 51. Be3 {[%clk 0:01:24]}  Qc6 {[%clk 0:22:03]}
52. Kg3 {[%clk 0:01:23]}  Qf3+ {[%clk 0:22:01]} 53. Kh4 {[%clk 0:01:48]}  Kg7 {[%clk 0:21:05]} 54. Qf2 {[%clk 0:01:36]}  Qc6 {[%clk 0:21:14]}
55. Qd2 {[%clk 0:01:14]}  Qh1 {[%clk 0:17:46]} 56. Kg3 {[%clk 0:01:38]}  Qf3+ {[%clk 0:17:05]} 57. Kh4 {[%clk 0:01:33]}  Bc6 {[%clk 0:17:06]}
58. Qf2 {[%clk 0:01:33]}  Qh1 {[%clk 0:17:16]} 59. Qg1 {[%clk 0:01:40]}  Qf3 {[%clk 0:17:30]} 60. Qf2 {[%clk 0:01:54]}  Qd1 {[%clk 0:17:47]}
61. Bc5 {[%clk 0:00:47]}  Bd8 {[%clk 0:06:15]} 62. Bb6 {[%clk 0:00:49]}  Be7 {[%clk 0:06:14]} 63. Bc5 {[%clk 0:01:15]}  Bd8 {[%clk 0:06:40]}
64. Bb6 {[%clk 0:01:42]}  Bxb6 {[%clk 0:02:23]} 65. Qxb6 {[%clk 0:02:07]}  Bf3 {[%clk 0:02:07]} 66. Kg3 {[%clk 0:01:00]}  Ba8 {[%clk 0:00:55]} 1/2-1/2

[Event "2026 European Womens Championship"]
[Site "Batumi, GE"]
[Date "2026.06.01"]
[Round "7"]
[White "Hariharan, Shambavi"]
[Black "Gueci, Tea"]
[Result "1-0"]
[Board "109"]
[TimeControl "5400+30"]
[WhiteFideId "488160"]
[BlackFideId "872342"]
[WhiteElo "2008"]
[BlackElo "2160"]
[WhiteTitle "WFM"]
[BlackTitle "WIM"]
[WhiteClock "0:11:16"]
[BlackClock "0:01:02"]
[Variant "Standard"]

1. d4 {[%clk 1:30:58]}  d5 {[%clk 1:30:57]} 2. c4 {[%clk 1:31:22]}  e6 {[%clk 1:31:21]} 3. Nf3 {[%clk 1:31:43]}  Nf6 {[%clk 1:31:46]}
4. g3 {[%clk 1:32:04]}  Bb4+ {[%clk 1:32:12]} 5. Bd2 {[%clk 1:32:28]}  a5 {[%clk 1:32:35]} 6. a3 {[%clk 1:32:07]}  Be7 {[%clk 1:29:57]}
7. Bg2 {[%clk 1:31:54]}  O-O {[%clk 1:30:13]} 8. O-O {[%clk 1:30:52]}  c6 {[%clk 1:28:42]} 9. Bf4 {[%clk 1:29:08]}  Nbd7 {[%clk 1:20:36]}
10. Nbd2 {[%clk 1:27:20]}  b6 {[%clk 1:17:22]} 11. e4 {[%clk 1:14:56]}  Nxe4 {[%clk 0:58:24]} 12. Nxe4 {[%clk 1:15:17]}  dxe4 {[%clk 0:58:50]}
13. Ne5 {[%clk 1:15:36]}  Nxe5 {[%clk 0:49:59]} 14. dxe5 {[%clk 1:15:51]}  Ba6 {[%clk 0:44:28]} 15. Rc1 {[%clk 1:12:54]}  f5 {[%clk 0:36:55]}
16. exf6 {[%clk 1:05:21]}  Bxf6 {[%clk 0:34:58]} 17. Qc2 {[%clk 0:52:00]}  Qd3 {[%clk 0:29:35]} 18. Bxe4 {[%clk 0:49:48]}  Qxc2 {[%clk 0:30:02]}
19. Rxc2 {[%clk 0:50:09]}  Rfd8 {[%clk 0:27:26]} 20. b4 {[%clk 0:44:49]}  Rac8 {[%clk 0:26:14]} 21. Be3 {[%clk 0:29:57]}  Bd4 {[%clk 0:25:46]}
22. bxa5 {[%clk 0:29:16]}  bxa5 {[%clk 0:24:48]} 23. Rb1 {[%clk 0:28:31]}  Rd6 {[%clk 0:09:51]} 24. Bd2 {[%clk 0:23:52]}  Bc5 {[%clk 0:10:11]}
25. Bxa5 {[%clk 0:17:18]}  Rd4 {[%clk 0:10:31]} 26. Bg2 {[%clk 0:15:42]}  Bxa3 {[%clk 0:08:07]} 27. Bf1 {[%clk 0:14:56]}  Bc5 {[%clk 0:02:20]}
28. Bb6 {[%clk 0:12:05]}  Rb8 {[%clk 0:01:38]} 29. Bxc5 {[%clk 0:11:53]}  Rxb1 {[%clk 0:01:43]} 30. Bxd4 {[%clk 0:12:18]}  Re1 {[%clk 0:00:57]}
31. f4 {[%clk 0:11:15]}  Rd1 {[%clk 0:00:33]} 32. Be5 {[%clk 0:11:34]}  c5 {[%clk 0:00:47]} 33. Kf2 {[%clk 0:11:38]}  Bb7 {[%clk 0:01:02]}
34. Bg2 {[%clk 0:11:16]} 1-0

[Event "2026 European Womens Championship"]
[Site "Batumi, GE"]
[Date "2026.06.01"]
[Round "7"]
[White "Koghuashvili, Tekla"]
[Black "Huseynova, Lala"]
[Result "0-1"]
[Board "110"]
[TimeControl "5400+30"]
[WhiteFideId "13621564"]
[BlackFideId "13431781"]
[WhiteElo "1921"]
[BlackElo "2149"]
[BlackTitle "WFM"]
[WhiteClock "0:45:54"]
[BlackClock "0:27:57"]
[Variant "Standard"]

1. e4 {[%clk 1:30:59]}  c5 {[%clk 1:28:48]} 2. Nf3 {[%clk 1:31:26]}  d6 {[%clk 1:29:07]} 3. d4 {[%clk 1:31:51]}  cxd4 {[%clk 1:29:29]}
4. Nxd4 {[%clk 1:32:12]}  Nf6 {[%clk 1:29:54]} 5. Nc3 {[%clk 1:32:38]}  a6 {[%clk 1:30:20]} 6. Bg5 {[%clk 1:33:04]}  e6 {[%clk 1:29:55]}
7. f4 {[%clk 1:33:31]}  h6 {[%clk 1:29:51]} 8. Bh4 {[%clk 1:33:46]}  Qb6 {[%clk 1:30:06]} 9. a3 {[%clk 1:34:03]}  Nbd7 {[%clk 1:27:44]}
10. Bf2 {[%clk 1:14:33]}  Qc7 {[%clk 1:27:52]} 11. Qf3 {[%clk 1:11:27]}  Rb8 {[%clk 1:25:01]} 12. O-O-O {[%clk 1:08:48]}  Be7 {[%clk 1:16:07]}
13. g4 {[%clk 1:07:09]}  g5 {[%clk 1:13:05]} 14. h4 {[%clk 0:56:38]}  gxf4 {[%clk 1:05:18]} 15. Rg1 {[%clk 0:55:07]}  b5 {[%clk 0:56:37]}
16. g5 {[%clk 0:47:00]}  Ne5 {[%clk 0:53:36]} 17. Qxf4 {[%clk 0:47:08]}  Nh5 {[%clk 0:46:01]} 18. Qe3 {[%clk 0:47:20]}  hxg5 {[%clk 0:40:59]}
19. hxg5 {[%clk 0:47:31]}  b4 {[%clk 0:39:21]} 20. axb4 {[%clk 0:47:02]}  Rxb4 {[%clk 0:39:43]} 21. Be2 {[%clk 0:42:11]}  Ng7 {[%clk 0:37:31]}
22. Nf3 {[%clk 0:34:17]}  Rh3 {[%clk 0:34:23]} 23. Bg3 {[%clk 0:32:23]}  Qa5 {[%clk 0:28:14]} 24. Nb1 {[%clk 0:22:25]}  Nxf3 {[%clk 0:14:23]}
25. Bxf3 {[%clk 0:22:49]}  Bxg5 {[%clk 0:12:32]} 26. Bf4 {[%clk 0:23:07]}  Nf5 {[%clk 0:11:32]} 27. Qd2 {[%clk 0:22:56]}  Qa1 {[%clk 0:05:41]}
28. Qxb4 {[%clk 0:19:42]}  Bxf4+ {[%clk 0:06:06]} 29. Rd2 {[%clk 0:20:07]}  Rh2 {[%clk 0:04:49]} 30. Rg8+ {[%clk 0:16:39]}  Ke7 {[%clk 0:05:19]}
31. Bg2 {[%clk 0:16:33]}  Ng3 {[%clk 0:04:22]} 32. e5 {[%clk 0:15:24]}  Ne2+ {[%clk 0:01:20]} 33. Kd1 {[%clk 0:15:49]}  Qxb1+ {[%clk 0:01:13]}
34. Kxe2 {[%clk 0:16:15]}  Bxe5 {[%clk 0:01:17]} 35. Qb6 {[%clk 0:16:01]}  Rxg2+ {[%clk 0:01:17]} 36. Rxg2 {[%clk 0:16:26]}  Bd7 {[%clk 0:01:14]}
37. Rg8 {[%clk 0:16:29]}  Bb5+ {[%clk 0:01:22]} 38. Kf3 {[%clk 0:15:11]}  Qf1+ {[%clk 0:01:06]} 39. Qf2 {[%clk 0:14:24]}  Qh3+ {[%clk 0:01:18]}
40. Rg3 {[%clk 0:14:23]}  Bc6+ {[%clk 0:00:58]} 41. Ke2 {[%clk 0:14:43]}  Bxg3 {[%clk 0:25:41]} 42. Qa7+ {[%clk 0:44:17]}  Kf8 {[%clk 0:25:13]}
43. c4 {[%clk 0:43:50]}  Qg2+ {[%clk 0:24:52]} 44. Kd3 {[%clk 0:43:50]}  Be4+ {[%clk 0:24:50]} 45. Kc3 {[%clk 0:43:42]}  Be5+ {[%clk 0:25:07]}
46. Rd4 {[%clk 0:44:07]}  Qc2+ {[%clk 0:25:30]} 47. Kb4 {[%clk 0:44:31]}  Qxb2+ {[%clk 0:25:53]} 48. Ka5 {[%clk 0:44:54]}  Qa3+ {[%clk 0:26:15]}
49. Kb6 {[%clk 0:44:57]}  Bxd4+ {[%clk 0:26:41]} 50. c5 {[%clk 0:45:03]}  Qxc5+ {[%clk 0:27:08]} 51. Kxa6 {[%clk 0:45:28]}  Qxa7+ {[%clk 0:27:34]}
52. Kb5 {[%clk 0:45:54]}  Qc5+ {[%clk 0:27:57]} 0-1

[Event "2026 European Womens Championship"]
[Site "Batumi, GE"]
[Date "2026.06.01"]
[Round "7"]
[White "Ashotia, Barbare"]
[Black "Skvortsova, Alena"]
[Result "1/2-1/2"]
[Board "111"]
[TimeControl "5400+30"]
[WhiteFideId "13625187"]
[BlackFideId "24166251"]
[WhiteElo "1913"]
[BlackElo "2135"]
[BlackTitle "WFM"]
[WhiteClock "0:17:31"]
[BlackClock "0:01:36"]
[Variant "Standard"]

1. e4 {[%clk 1:30:56]}  g6 {[%clk 1:30:52]} 2. d4 {[%clk 1:30:57]}  Bg7 {[%clk 1:31:12]} 3. Nf3 {[%clk 1:30:16]}  d6 {[%clk 1:31:28]}
4. Nc3 {[%clk 1:24:17]}  Nf6 {[%clk 1:31:28]} 5. g3 {[%clk 1:23:05]}  O-O {[%clk 1:29:41]} 6. Bg2 {[%clk 1:22:48]}  c6 {[%clk 1:26:56]}
7. O-O {[%clk 1:18:56]}  Qc7 {[%clk 1:26:29]} 8. e5 {[%clk 1:05:48]}  dxe5 {[%clk 1:20:53]} 9. Nxe5 {[%clk 1:02:50]}  Rd8 {[%clk 1:11:20]}
10. Ne2 {[%clk 0:59:07]}  c5 {[%clk 1:01:09]} 11. c3 {[%clk 0:56:52]}  cxd4 {[%clk 0:59:36]} 12. cxd4 {[%clk 0:57:10]}  Nd5 {[%clk 0:58:05]}
13. Nf4 {[%clk 0:41:53]}  Nb6 {[%clk 0:41:59]} 14. Nf3 {[%clk 0:33:03]}  Nc6 {[%clk 0:35:14]} 15. Ne2 {[%clk 0:26:56]}  Bg4 {[%clk 0:31:56]}
16. Be3 {[%clk 0:22:59]}  e5 {[%clk 0:28:55]} 17. Rc1 {[%clk 0:18:01]}  exd4 {[%clk 0:23:47]} 18. Bf4 {[%clk 0:10:25]}  Qd7 {[%clk 0:23:53]}
19. Qd2 {[%clk 0:08:49]}  a5 {[%clk 0:15:47]} 20. Ne1 {[%clk 0:04:50]}  Re8 {[%clk 0:10:59]} 21. f3 {[%clk 0:04:19]}  Be6 {[%clk 0:11:12]}
22. b3 {[%clk 0:03:25]}  a4 {[%clk 0:11:09]} 23. Nd3 {[%clk 0:03:37]}  axb3 {[%clk 0:09:29]} 24. axb3 {[%clk 0:03:09]}  Bxb3 {[%clk 0:08:54]}
25. Nc5 {[%clk 0:02:24]}  Qe7 {[%clk 0:06:50]} 26. Nxb3 {[%clk 0:01:30]}  Qxe2 {[%clk 0:07:13]} 27. Rfe1 {[%clk 0:00:48]}  Qxd2 {[%clk 0:05:40]}
28. Rxe8+ {[%clk 0:01:16]}  Rxe8 {[%clk 0:06:03]} 29. Bxd2 {[%clk 0:01:41]}  Nd5 {[%clk 0:05:45]} 30. f4 {[%clk 0:01:32]}  Nc3 {[%clk 0:03:12]}
31. Kf1 {[%clk 0:01:02]}  Ne4 {[%clk 0:02:38]} 32. Bxe4 {[%clk 0:01:04]}  Rxe4 {[%clk 0:03:03]} 33. Nc5 {[%clk 0:01:29]}  Re7 {[%clk 0:02:32]}
34. Nxb7 {[%clk 0:01:38]}  Rxb7 {[%clk 0:02:55]} 35. Rxc6 {[%clk 0:02:04]}  h5 {[%clk 0:01:35]} 36. Ke2 {[%clk 0:01:35]}  Kf8 {[%clk 0:01:14]}
37. Rc5 {[%clk 0:01:09]}  Bf6 {[%clk 0:01:20]} 38. Rc6 {[%clk 0:00:42]}  Kg7 {[%clk 0:01:30]} 39. Be1 {[%clk 0:00:33]}  Rb2+ {[%clk 0:01:02]}
40. Bd2 {[%clk 0:00:50]}  Rb1 {[%clk 0:01:17]} 41. Rc1 {[%clk 0:25:34]}  Rb3 {[%clk 0:29:53]} 42. Rd1 {[%clk 0:23:38]}  h4 {[%clk 0:26:53]}
43. Be1 {[%clk 0:21:46]}  Kh6 {[%clk 0:18:43]} 44. Bf2 {[%clk 0:10:06]}  Kh5 {[%clk 0:03:56]} 45. Bxd4 {[%clk 0:09:49]}  Bxd4 {[%clk 0:04:11]}
46. Rxd4 {[%clk 0:10:18]}  hxg3 {[%clk 0:03:55]} 47. hxg3 {[%clk 0:10:42]}  Rxg3 {[%clk 0:02:35]} 48. Rd7 {[%clk 0:09:27]}  f5 {[%clk 0:02:30]}
49. Rd6 {[%clk 0:09:41]}  Kg4 {[%clk 0:02:28]} 50. Rxg6+ {[%clk 0:10:04]}  Kxf4 {[%clk 0:02:52]} 51. Ra6 {[%clk 0:10:29]}  Rb3 {[%clk 0:02:10]}
52. Kf2 {[%clk 0:10:41]}  Rb2+ {[%clk 0:02:30]} 53. Kf1 {[%clk 0:11:05]}  Rb3 {[%clk 0:01:36]} 54. Kf2 {[%clk 0:11:18]}  Rb2+ {[%clk 0:01:08]}
55. Kf1 {[%clk 0:11:42]}  Rd2 {[%clk 0:00:56]} 56. Ra4+ {[%clk 0:11:43]}  Ke3 {[%clk 0:01:01]} 57. Ra3+ {[%clk 0:11:57]}  Ke4 {[%clk 0:01:00]}
58. Ra4+ {[%clk 0:12:05]}  Kf3 {[%clk 0:00:55]} 59. Ra3+ {[%clk 0:12:28]}  Kg4 {[%clk 0:01:14]} 60. Ra4+ {[%clk 0:12:51]}  Kg5 {[%clk 0:01:12]}
61. Rb4 {[%clk 0:13:07]}  f4 {[%clk 0:01:29]} 62. Rb5+ {[%clk 0:13:23]}  Kg4 {[%clk 0:01:51]} 63. Rb3 {[%clk 0:13:49]}  Ra2 {[%clk 0:01:43]}
64. Rc3 {[%clk 0:14:03]}  Kf5 {[%clk 0:01:35]} 65. Rb3 {[%clk 0:13:51]}  Rd2 {[%clk 0:01:19]} 66. Rb5+ {[%clk 0:13:31]}  Ke4 {[%clk 0:01:17]}
67. Rb4+ {[%clk 0:13:54]}  Ke3 {[%clk 0:01:32]} 68. Rb3+ {[%clk 0:14:18]}  Ke4 {[%clk 0:01:50]} 69. Rb4+ {[%clk 0:14:38]}  Kf3 {[%clk 0:02:14]}
70. Rb3+ {[%clk 0:15:04]}  Kg4 {[%clk 0:02:38]} 71. Ra3 {[%clk 0:15:30]}  Rd1+ {[%clk 0:02:15]} 72. Kf2 {[%clk 0:15:49]}  Rb1 {[%clk 0:02:34]}
73. Rc3 {[%clk 0:16:06]}  Rb5 {[%clk 0:02:15]} 74. Ra3 {[%clk 0:16:15]}  Rb4 {[%clk 0:01:30]} 75. Rc3 {[%clk 0:16:22]}  f3 {[%clk 0:01:42]}
76. Rc8 {[%clk 0:16:46]}  Rb2+ {[%clk 0:01:50]} 77. Kf1 {[%clk 0:17:09]}  Kg3 {[%clk 0:01:36]} 78. Rg8+ {[%clk 0:17:31]} 1/2-1/2